fUSD/lending_fUSD_20260610
["ID","MTS","AMOUNT","RATE_DAILY","PERIOD"]
[424734818,1781097041000,-637.49,0.00014042,2]
[424734817,1781097041000,-150.0,0.00014033,2]
[424734815,1781097041000,-30940.84046175,0.00014011,2]
[424734816,1781097041000,-150.0,0.00014014,2]
[424734823,1781097041000,-150.0,0.0001413,2]
[424734814,1781097041000,-407.97689245,0.0001401,2]
[424734811,1781097041000,-26563.13130266,0.0001399,2]
[424734812,1781097041000,-1500.0,0.00014,2]
[424734813,1781097041000,-250.0,0.00014,2]
[424734889,1781097042000,-300.54214327,0.00014653,2]
[424734886,1781097042000,-150.0,0.00014612,2]
[424734885,1781097042000,-3292.62799553,0.00014586,2]
[424734888,1781097042000,-150.0,0.00014622,2]
[424734898,1781097042000,-30940.84046175,0.00014678,2]
[424734887,1781097042000,-300.54214327,0.0001462,2]
[424734900,1781097042000,-150.0,0.00014687,2]
[424734899,1781097042000,-300.54214327,0.00014685,2]
[424734897,1781097042000,-500.0,0.00014677,2]
[424734893,1781097042000,-500.0,0.00014677,2]
[424734884,1781097042000,-300.54214327,0.00014585,2]
[424734891,1781097042000,-500.0,0.00014677,2]
[424734914,1781097042000,-350.0,0.000148,2]
[424734896,1781097042000,-500.0,0.00014677,2]
[424734890,1781097042000,-150.0,0.00014662,2]
[424734904,1781097042000,-150.0,0.00014703,2]
[424734902,1781097042000,-250.0,0.00014689,2]
[424734906,1781097042000,-150.0,0.00014714,2]
[424734909,1781097042000,-300.54214327,0.00014745,2]
[424734912,1781097042000,-150.0,0.00014784,2]
[424734910,1781097042000,-150.0,0.00014772,2]
[424734907,1781097042000,-300.54214327,0.00014716,2]
[424734913,1781097042000,-150.0,0.00014799,2]
[424734882,1781097042000,-997.00279469,0.00014583,2]
[424734892,1781097042000,-500.0,0.00014677,2]
[424734870,1781097042000,-155.4,0.00014547,2]
[424734850,1781097042000,-150.0,0.00014379,2]
[424734872,1781097042000,-150.0,0.00014558,2]
[424734849,1781097042000,-166.09,0.00014376,2]
[424734911,1781097042000,-300.54214327,0.00014773,2]
[424734851,1781097042000,-150.0,0.00014387,2]
[424734852,1781097042000,-10481.39136115,0.0001439,2]
[424734855,1781097042000,-907.80736409,0.000144,2]
[424734857,1781097042000,-300.54214327,0.00014419,2]
[424734856,1781097042000,-150.0,0.00014419,2]
[424734853,1781097042000,-150.0,0.000144,2]
[424734854,1781097042000,-1240.58824275,0.000144,2]
[424734859,1781097042000,-251.570681,0.00014426,2]
[424734868,1781097042000,-150.0,0.00014541,2]
[424734867,1781097042000,-150.0,0.00014537,2]
[424734858,1781097042000,-150.0,0.00014424,2]
[424734860,1781097042000,-150.0,0.00014441,2]
[424734862,1781097042000,-150.0,0.0001446,2]
[424734861,1781097042000,-30940.84046175,0.00014455,2]
[424734864,1781097042000,-150.0,0.00014487,2]
[424734863,1781097042000,-300.54214327,0.00014466,2]
[424734866,1781097042000,-300.54214327,0.00014508,2]
[424734865,1781097042000,-150.0,0.000145,2]
[424734869,1781097042000,-425.64,0.00014542,2]
[424734878,1781097042000,-150.0,0.00014578,2]
[424734871,1781097042000,-300.54214327,0.00014548,2]
[424734880,1781097042000,-150.0,0.00014581,2]
[424734874,1781097042000,-1105.33019,0.00014568,2]
[424734876,1781097042000,-4421.320761,0.00014568,2]
[424734908,1781097042000,-150.0,0.00014743,2]
[424734927,1781097042000,-5800.0,0.00014874,2]
[424734915,1781097042000,-2568.50890741,0.000148,2]
[424734948,1781097042000,-287.26688411,0.00014986,2]
[424734947,1781097042000,-190.96821533,0.00014986,2]
[424734957,1781097042000,-150.0,0.00014989,2]
[424734954,1781097042000,-500.0,0.00014988,2]
[424734956,1781097042000,-121006.09778736,0.00014989,2]
[424734951,1781097042000,-259.72963901,0.00014986,2]
[424734949,1781097042000,-215.44236381,0.00014986,2]
[424734950,1781097042000,-244.03049337,0.00014986,2]
[424734953,1781097042000,-637.49,0.00014988,2]
[424734952,1781097042000,-167.4955917,0.00014986,2]
[424734955,1781097042000,-500.0,0.00014988,2]
[424734944,1781097042000,-300.54214327,0.0001495,2]
[424734916,1781097042000,-300.54214327,0.00014801,2]
[424734970,1781097042000,-500.0,0.00014999,2]
[424734961,1781097042000,-1687.24630316,0.0001499,2]
[424734962,1781097042000,-300.54214327,0.00014995,2]
[424734960,1781097042000,-1687.24630316,0.0001499,2]
[424734963,1781097042000,-151.0,0.00014997,2]
[424734965,1781097042000,-500.0,0.00014999,2]
[424734964,1781097042000,-2704.7365885,0.00014999,2]
[424734967,1781097042000,-477.63805442,0.00014999,2]
[424734966,1781097042000,-500.0,0.00014999,2]
[424734969,1781097042000,-500.0,0.00014999,2]
[424734968,1781097042000,-500.0,0.00014999,2]
[424734959,1781097042000,-278.37577561,0.00014989,2]
[424734945,1781097042000,-300.54214327,0.00014973,2]
[424734958,1781097042000,-150.0,0.00014989,2]
[424734946,1781097042000,-225.13244417,0.00014986,2]
[424734942,1781097042000,-300.54214327,0.00014927,2]
[424734917,1781097042000,-150.0,0.00014824,2]
[424734918,1781097042000,-300.54214327,0.00014828,2]
[424734919,1781097042000,-433.0,0.00014833,2]
[424734923,1781097042000,-300.54214327,0.00014853,2]
[424734922,1781097042000,-150.0,0.0001485,2]
[424734921,1781097042000,-2000.0,0.00014844,2]
[424734924,1781097042000,-636.28291595,0.00014862,2]
[424734926,1781097042000,-5800.0,0.00014866,2]
[424734925,1781097042000,-150.0,0.00014865,2]
[424734928,1781097042000,-300.54214327,0.00014879,2]
[424734931,1781097042000,-5800.0,0.00014891,2]
[424734920,1781097042000,-150.0,0.00014836,2]
[424734929,1781097042000,-5800.0,0.00014883,2]
[424734941,1781097042000,-291.61486188,0.00014908,2]
[424734934,1781097042000,-30940.84046175,0.000149,2]
[424734943,1781097042000,-150.0,0.00014946,2]
[424734940,1781097042000,-150.0,0.00014905,2]
[424734938,1781097042000,-907.80736409,0.000149,2]
[424734936,1781097042000,-3292.62799553,0.000149,2]
[424734939,1781097042000,-300.54214327,0.00014903,2]
[424734933,1781097042000,-997.00279469,0.000149,2]
[424734935,1781097042000,-1491.17536422,0.000149,2]
[424734930,1781097042000,-2000.0,0.00014884,2]
[424734932,1781097042000,-10807.36198924,0.000149,2]
[424734937,1781097042000,-5800.0,0.000149,2]
[424734991,1781097043000,-500.0,0.00014999,2]
[424734988,1781097043000,-637.60456704,0.00014999,2]
[424734986,1781097043000,-637.49,0.00014999,2]
[424734983,1781097043000,-637.49,0.00014999,2]
[424734989,1781097043000,-500.0,0.00014999,2]
[424734998,1781097043000,-500.0,0.00014999,2]
[424734993,1781097043000,-500.0,0.00014999,2]
[424734995,1781097043000,-500.0,0.00014999,2]
[424734996,1781097043000,-500.0,0.00014999,2]
[424735005,1781097043000,-250.0,0.00014999,2]
[424734992,1781097043000,-500.0,0.00014999,2]
[424734990,1781097043000,-500.0,0.00014999,2]
[424734987,1781097043000,-637.49,0.00014999,2]
[424734972,1781097043000,-500.0,0.00014999,2]
[424734984,1781097043000,-637.49,0.00014999,2]
[424734982,1781097043000,-637.49,0.00014999,2]
[424734981,1781097043000,-637.49,0.00014999,2]
[424734980,1781097043000,-637.49,0.00014999,2]
[424734979,1781097043000,-637.49,0.00014999,2]
[424734975,1781097043000,-182.4905201,0.00014999,2]
[424734977,1781097043000,-637.49,0.00014999,2]
[424734973,1781097043000,-500.0,0.00014999,2]
[424734978,1781097043000,-637.49,0.00014999,2]
[424734976,1781097043000,-637.49,0.00014999,2]
[424734974,1781097043000,-630.39633207,0.00014999,2]
[424734971,1781097043000,-500.0,0.00014999,2]
[424735001,1781097043000,-500.0,0.00014999,2]
[424734985,1781097043000,-637.49,0.00014999,2]
[424734997,1781097043000,-537.14703498,0.00014999,2]
[424735029,1781097043000,-476279.22730516,0.00015,2]
[424734994,1781097043000,-500.0,0.00014999,2]
[424735000,1781097043000,-500.0,0.00014999,2]
[424735028,1781097043000,-8101.85734556,0.00015,2]
[424735030,1781097043000,-310.0,0.00015,2]
[424735025,1781097043000,-925051.52526096,0.00015,2]
[424735027,1781097043000,-2081.4127102,0.00015,2]
[424735026,1781097043000,-11370.73564642,0.00015,2]
[424735024,1781097043000,-1292.97554715,0.0001425,2]
[424735023,1781097043000,-556.08064262,0.00015,2]
[424735022,1781097043000,-3143.45431718,0.00015,2]
[424735019,1781097043000,-11162777.32619852,0.00015,2]
[424735020,1781097043000,-503.47737862,0.00015,2]
[424735017,1781097043000,-300.0,0.00014999,2]
[424735018,1781097043000,-666.0,0.00014999,2]
[424735014,1781097043000,-300.0,0.00014999,2]
[424735021,1781097043000,-1158.30052897,0.00015,2]
[424735016,1781097043000,-300.0,0.00014999,2]
[424734999,1781097043000,-500.0,0.00014999,2]
[424735011,1781097043000,-500.0,0.00014999,2]
[424735004,1781097043000,-281.67279939,0.00014999,2]
[424735002,1781097043000,-500.0,0.00014999,2]
[424735006,1781097043000,-2000.0,0.00014999,2]
[424735013,1781097043000,-356.80515996,0.00014999,2]
[424735003,1781097043000,-500.0,0.00014999,2]
[424735009,1781097043000,-500.0,0.00014999,2]
[424735015,1781097043000,-666.0,0.00014999,2]
[424735008,1781097043000,-177.96166489,0.00014999,2]
[424735007,1781097043000,-500.0,0.00014999,2]
[424735012,1781097043000,-500.0,0.00014999,2]
[424735010,1781097043000,-500.0,0.00014999,2]
[424735067,1781097047000,-478.83371305,0.00014166,2]
[424735066,1781097047000,-2231.13141779,0.00014166,2]
[424735064,1781097047000,-3864.0506,0.00014166,2]
[424735061,1781097047000,-1102.89038762,0.00013833,2]
[424735062,1781097047000,-729.11733122,0.00014166,2]
[424735057,1781097047000,-293.47302106,0.00013698,2]
[424735059,1781097047000,-365.49271884,0.00013698,2]
[424735058,1781097047000,-206.52697894,0.00013698,2]
[424735063,1781097047000,-4493.4274355,0.00014166,2]
[424735060,1781097047000,-61.11228116,0.00013698,2]
[424735068,1781097047000,-505.0,0.00014166,2]
[424735079,1781097047000,-276.84839529,0.00014166,2]
[424735070,1781097047000,-511.63701206,0.00014166,2]
[424735080,1781097047000,-394.56,0.00014166,2]
[424735065,1781097047000,-9961.84495456,0.00014166,2]
[424735077,1781097047000,-733.87205187,0.00014166,2]
[424735074,1781097047000,-500.0,0.00013698,2]
[424735075,1781097047000,-500.0,0.00013698,2]
[424735078,1781097047000,-500.0,0.00013698,2]
[424735072,1781097047000,-500.0,0.00013698,2]
[424735071,1781097047000,-500.0,0.00013698,2]
[424735073,1781097047000,-500.0,0.00013698,2]
[424735069,1781097047000,-2642.29718089,0.00014166,2]
[424735076,1781097047000,-489.84,0.00014166,2]
[424735085,1781097555000,-311.16,0.00010989,2]
[424735100,1781098232000,-200.0,0.00011553,2]
[424735105,1781098232000,-96.27039273,0.00011896,2]
[424735107,1781098232000,-477.78034845,0.00011972,2]
[424735106,1781098232000,-352.14965155,0.00011972,2]
[424735104,1781098232000,-70.38960727,0.00011896,2]
[424735102,1781098232000,-73.18094516,0.00011553,7]
[424735111,1781098232000,-212.82,0.00012322,2]
[424735108,1781098232000,-968.3,0.00012045,2]
[424735101,1781098232000,-274.20905484,0.00011553,7]
[424735103,1781098232000,-166.66,0.00011651,2]
[424735112,1781098232000,-175.11,0.00012329,2]
[424735110,1781098232000,-558.33986113,0.00012308,2]
[424735109,1781098232000,-166.66,0.00012141,2]
[424735113,1781098232000,-630.48011094,0.00012347,2]
[424735126,1781098239000,-6744.17713177,0.00012597,2]
[424735125,1781098239000,-1057.64095926,0.00012597,2]
[424735120,1781098239000,-166.66,0.00012387,2]
[424735128,1781098239000,-1910.8318,0.00012598,2]
[424735122,1781098239000,-22365.0442,0.00012597,2]
[424735123,1781098239000,-2500.0,0.00012597,2]
[424735127,1781098239000,-12266.19442746,0.00012597,2]
[424735119,1781098239000,-337.81988906,0.00012347,2]
[424735124,1781098239000,-217.90779764,0.00012597,2]
[424735121,1781098239000,-150.0,0.00012596,2]
[424735258,1781098240000,-1937.61730392,0.00012696,2]
[424735133,1781098240000,-250.0,0.00012696,2]
[424735138,1781098240000,-1017.26124749,0.00012696,2]
[424735172,1781098240000,-1017.26124749,0.00012696,2]
[424735166,1781098240000,-1017.26124749,0.00012696,2]
[424735238,1781098240000,-968.808652,0.00012696,2]
[424735180,1781098240000,-1017.26124749,0.00012696,2]
[424735183,1781098240000,-1015.04981,0.00012696,2]
[424735205,1781098240000,-1015.04981,0.00012696,2]
[424735250,1781098240000,-968.808652,0.00012696,2]
[424735131,1781098240000,-968.3,0.00012648,2]
[424735170,1781098240000,-1017.26124749,0.00012696,2]
[424735142,1781098240000,-1017.26124749,0.00012696,2]
[424735147,1781098240000,-1017.26124749,0.00012696,2]
[424735154,1781098240000,-1017.26124749,0.00012696,2]
[424735164,1781098240000,-1017.26124749,0.00012696,2]
[424735168,1781098240000,-1017.26124749,0.00012696,2]
[424735169,1781098240000,-1017.26124749,0.00012696,2]
[424735226,1781098240000,-968.808652,0.00012696,2]
[424735174,1781098240000,-1017.26124749,0.00012696,2]
[424735179,1781098240000,-1017.26124749,0.00012696,2]
[424735219,1781098240000,-1015.04981,0.00012696,2]
[424735213,1781098240000,-1015.04981,0.00012696,2]
[424735141,1781098240000,-1017.26124749,0.00012696,2]
[424735207,1781098240000,-1015.04981,0.00012696,2]
[424735215,1781098240000,-1015.04981,0.00012696,2]
[424735156,1781098240000,-1017.26124749,0.00012696,2]
[424735155,1781098240000,-1017.26124749,0.00012696,2]
[424735149,1781098240000,-1017.26124749,0.00012696,2]
[424735178,1781098240000,-1017.26124749,0.00012696,2]
[424735259,1781098240000,-585437.75674678,0.00012697,2]
[424735132,1781098240000,-475.15185149,0.00012696,2]
[424735144,1781098240000,-1017.26124749,0.00012696,2]
[424735160,1781098240000,-1017.26124749,0.00012696,2]
[424735185,1781098240000,-1015.04981,0.00012696,2]
[424735193,1781098240000,-1015.04981,0.00012696,2]
[424735189,1781098240000,-1015.04981,0.00012696,2]
[424735190,1781098240000,-1015.04981,0.00012696,2]
[424735242,1781098240000,-968.808652,0.00012696,2]
[424735163,1781098240000,-1017.26124749,0.00012696,2]
[424735196,1781098240000,-1015.04981,0.00012696,2]
[424735197,1781098240000,-1015.04981,0.00012696,2]
[424735195,1781098240000,-1015.04981,0.00012696,2]
[424735198,1781098240000,-1015.04981,0.00012696,2]
[424735204,1781098240000,-1015.04981,0.00012696,2]
[424735236,1781098240000,-968.808652,0.00012696,2]
[424735134,1781098240000,-250.0,0.00012696,2]
[424735139,1781098240000,-1017.26124749,0.00012696,2]
[424735145,1781098240000,-1017.26124749,0.00012696,2]
[424735146,1781098240000,-1017.26124749,0.00012696,2]
[424735165,1781098240000,-1017.26124749,0.00012696,2]
[424735181,1781098240000,-1015.04981,0.00012696,2]
[424735191,1781098240000,-1015.04981,0.00012696,2]
[424735246,1781098240000,-968.808652,0.00012696,2]
[424735182,1781098240000,-1015.04981,0.00012696,2]
[424735194,1781098240000,-1015.04981,0.00012696,2]
[424735201,1781098240000,-1015.04981,0.00012696,2]
[424735203,1781098240000,-1015.04981,0.00012696,2]
[424735221,1781098240000,-353.99080792,0.00012696,2]
[424735211,1781098240000,-1015.04981,0.00012696,2]
[424735254,1781098240000,-968.808652,0.00012696,2]
[424735161,1781098240000,-1017.26124749,0.00012696,2]
[424735173,1781098240000,-1017.26124749,0.00012696,2]
[424735202,1781098240000,-1015.04981,0.00012696,2]
[424735137,1781098240000,-1017.26124749,0.00012696,2]
[424735167,1781098240000,-1017.26124749,0.00012696,2]
[424735188,1781098240000,-1015.04981,0.00012696,2]
[424735199,1781098240000,-1015.04981,0.00012696,2]
[424735234,1781098240000,-968.808652,0.00012696,2]
[424735230,1781098240000,-968.808652,0.00012696,2]
[424735257,1781098240000,-617.31569884,0.00012696,2]
[424735130,1781098240000,-166.66,0.00012632,2]
[424735150,1781098240000,-1017.26124749,0.00012696,2]
[424735158,1781098240000,-1017.26124749,0.00012696,2]
[424735162,1781098240000,-1017.26124749,0.00012696,2]
[424735192,1781098240000,-1015.04981,0.00012696,2]
[424735200,1781098240000,-1015.04981,0.00012696,2]
[424735177,1781098240000,-1017.26124749,0.00012696,2]
[424735175,1781098240000,-1017.26124749,0.00012696,2]
[424735209,1781098240000,-1015.04981,0.00012696,2]
[424735140,1781098240000,-1017.26124749,0.00012696,2]
[424735148,1781098240000,-1017.26124749,0.00012696,2]
[424735159,1781098240000,-1017.26124749,0.00012696,2]
[424735255,1781098240000,-968.808652,0.00012696,2]
[424735187,1781098240000,-1015.04981,0.00012696,2]
[424735152,1781098240000,-1017.26124749,0.00012696,2]
[424735135,1781098240000,-2000.0,0.00012696,2]
[424735136,1781098240000,-272.37218693,0.00012696,2]
[424735143,1781098240000,-1017.26124749,0.00012696,2]
[424735153,1781098240000,-1017.26124749,0.00012696,2]
[424735151,1781098240000,-1017.26124749,0.00012696,2]
[424735176,1781098240000,-1017.26124749,0.00012696,2]
[424735240,1781098240000,-968.808652,0.00012696,2]
[424735231,1781098240000,-968.808652,0.00012696,2]
[424735252,1781098240000,-968.808652,0.00012696,2]
[424735256,1781098240000,-968.808652,0.00012696,2]
[424735184,1781098240000,-1015.04981,0.00012696,2]
[424735186,1781098240000,-1015.04981,0.00012696,2]
[424735227,1781098240000,-968.808652,0.00012696,2]
[424735129,1781098240000,-215.92376884,0.00012618,2]
[424735157,1781098240000,-1017.26124749,0.00012696,2]
[424735171,1781098240000,-1017.26124749,0.00012696,2]
[424735217,1781098240000,-393.27457522,0.00012696,2]
[424735223,1781098240000,-968.808652,0.00012696,2]
[424735244,1781098240000,-968.808652,0.00012696,2]
[424735248,1781098240000,-968.808652,0.00012696,2]
[424735261,1781098241000,-329.16,0.00012697,2]
[424735260,1781098241000,-698.00313958,0.00012697,2]
[424735262,1781098241000,-471.58698135,0.00012697,2]
[424735263,1781098241000,-1029.36877674,0.00012697,2]
[424735305,1781098242000,-1480.84548961,0.00012697,2]
[424735304,1781098242000,-36687.72860874,0.00012697,2]
[424735306,1781098243000,-338.67880001,0.00012697,2]
[424735307,1781098243000,-414.73118344,0.00012697,2]
[424735314,1781098245000,-477.12,0.00012697,2]
[424735327,1781099431000,-163.65,0.00011282,2]
[424735326,1781099431000,-166.66,0.0001105,2]
[424735328,1781099431000,-166.66,0.00011282,2]
[424735329,1781099431000,-212.82,0.00011404,2]
[424735330,1781099431000,-769.02520977,0.00011433,2]
[424735332,1781099431000,-1000.0,0.00011471,2]
[424735335,1781099431000,-387.32,0.00011741,2]
[424735331,1781099431000,-88.18479023,0.00011433,2]
[424735333,1781099431000,-180.8,0.00011505,2]
[424735334,1781099431000,-166.66,0.00011515,2]
[424735337,1781099431000,-155.4,0.0001178,2]
[424735339,1781099431000,-387.32,0.00012035,2]
[424735338,1781099431000,-166.66,0.0001198,2]
[424735336,1781099431000,-166.66,0.00011748,2]
[424735340,1781099432000,-166.66,0.00012213,2]
[424735341,1781099432000,-387.32,0.00012328,2]
[424735342,1781099432000,-705.09397284,0.0001238,2]
[424735345,1781099432000,-586.93564351,0.0001238,2]
[424735344,1781099432000,-890.37334063,0.0001238,2]
[424735346,1781099432000,-251.93971064,0.0001238,2]
[424735347,1781099432000,-378.79908171,0.0001238,2]
[424735348,1781099432000,-3428.52083884,0.0001238,2]
[424735349,1781099432000,-533.19080329,0.0001238,2]
[424735351,1781099432000,-875.42,0.0001238,2]
[424735350,1781099432000,-172.68919671,0.0001238,2]
[424735343,1781099432000,-186.77811228,0.0001238,2]
[424735362,1781099438000,-816.62506821,0.0001238,2]
[424735364,1781099438000,-3166.74215714,0.0001238,2]
[424735363,1781099438000,-635.26573508,0.0001238,2]
[424735365,1781099438000,-1408.77802933,0.0001238,2]
[424735366,1781099438000,-645.18989679,0.0001238,2]
[424735367,1781099438000,-717.44478947,0.0001238,2]
[424735449,1781099440000,-229.0,0.00012426,2]
[424735450,1781099440000,-227.0,0.00012426,2]
[424735452,1781099440000,-222.0,0.00012426,2]
[424735454,1781099440000,-223.0,0.00012426,2]
[424735455,1781099440000,-224.0,0.00012426,2]
[424735456,1781099440000,-226.0,0.00012426,2]
[424735453,1781099440000,-223.0,0.00012426,2]
[424735457,1781099440000,-221.0,0.00012426,2]
[424735458,1781099440000,-226.0,0.00012426,2]
[424735459,1781099440000,-224.0,0.00012426,2]
[424735463,1781099440000,-221.0,0.00012426,2]
[424735461,1781099440000,-223.0,0.00012426,2]
[424735462,1781099440000,-223.0,0.00012426,2]
[424735467,1781099440000,-228.0,0.00012426,2]
[424735468,1781099440000,-226.0,0.00012426,2]
[424735466,1781099440000,-228.0,0.00012426,2]
[424735465,1781099440000,-226.0,0.00012426,2]
[424735464,1781099440000,-228.0,0.00012426,2]
[424735470,1781099440000,-227.0,0.00012426,2]
[424735460,1781099440000,-225.0,0.00012426,2]
[424735451,1781099440000,-229.0,0.00012426,2]
[424735437,1781099440000,-229.0,0.00012425,2]
[424735448,1781099440000,-223.0,0.00012425,2]
[424735426,1781099440000,-5129.10495154,0.0001238,2]
[424735430,1781099440000,-225.0,0.00012425,2]
[424735429,1781099440000,-224.0,0.00012425,2]
[424735431,1781099440000,-229.0,0.00012425,2]
[424735427,1781099440000,-150.0,0.00012424,2]
[424735428,1781099440000,-225.0,0.00012425,2]
[424735435,1781099440000,-221.0,0.00012425,2]
[424735434,1781099440000,-227.0,0.00012425,2]
[424735433,1781099440000,-229.0,0.00012425,2]
[424735447,1781099440000,-223.0,0.00012425,2]
[424735432,1781099440000,-221.0,0.00012425,2]
[424735440,1781099440000,-222.0,0.00012425,2]
[424735446,1781099440000,-221.0,0.00012425,2]
[424735438,1781099440000,-228.0,0.00012425,2]
[424735444,1781099440000,-226.0,0.00012425,2]
[424735445,1781099440000,-221.0,0.00012425,2]
[424735441,1781099440000,-226.0,0.00012425,2]
[424735443,1781099440000,-224.0,0.00012425,2]
[424735439,1781099440000,-221.0,0.00012425,2]
[424735469,1781099440000,-227.0,0.00012426,2]
[424735436,1781099440000,-223.0,0.00012425,2]
[424735480,1781099440000,-671.39242335,0.00012479,2]
[424735442,1781099440000,-227.0,0.00012425,2]
[424735476,1781099440000,-671.39242335,0.00012479,2]
[424735497,1781099440000,-671.39242335,0.00012479,2]
[424735501,1781099440000,-671.39242335,0.00012479,2]
[424735498,1781099440000,-671.39242335,0.00012479,2]
[424735499,1781099440000,-671.39242335,0.00012479,2]
[424735500,1781099440000,-671.39242335,0.00012479,2]
[424735502,1781099440000,-671.39242335,0.00012479,2]
[424735503,1781099440000,-671.39242335,0.00012479,2]
[424735505,1781099440000,-671.39242335,0.00012479,2]
[424735509,1781099440000,-671.39242335,0.00012479,2]
[424735495,1781099440000,-671.39242335,0.00012479,2]
[424735516,1781099440000,-671.39242335,0.00012479,2]
[424735513,1781099440000,-671.39242335,0.00012479,2]
[424735507,1781099440000,-671.39242335,0.00012479,2]
[424735506,1781099440000,-671.39242335,0.00012479,2]
[424735508,1781099440000,-671.39242335,0.00012479,2]
[424735512,1781099440000,-671.39242335,0.00012479,2]
[424735510,1781099440000,-671.39242335,0.00012479,2]
[424735514,1781099440000,-671.39242335,0.00012479,2]
[424735517,1781099440000,-671.39242335,0.00012479,2]
[424735472,1781099440000,-224.0,0.00012426,2]
[424735511,1781099440000,-671.39242335,0.00012479,2]
[424735493,1781099440000,-671.39242335,0.00012479,2]
[424735515,1781099440000,-671.39242335,0.00012479,2]
[424735504,1781099440000,-671.39242335,0.00012479,2]
[424735496,1781099440000,-671.39242335,0.00012479,2]
[424735477,1781099440000,-671.39242335,0.00012479,2]
[424735471,1781099440000,-225.0,0.00012426,2]
[424735474,1781099440000,-215.92376884,0.00012451,2]
[424735475,1781099440000,-671.39242335,0.00012479,2]
[424735473,1781099440000,-160.0,0.00012451,2]
[424735478,1781099440000,-671.39242335,0.00012479,2]
[424735481,1781099440000,-671.39242335,0.00012479,2]
[424735482,1781099440000,-671.39242335,0.00012479,2]
[424735486,1781099440000,-671.39242335,0.00012479,2]
[424735479,1781099440000,-671.39242335,0.00012479,2]
[424735485,1781099440000,-671.39242335,0.00012479,2]
[424735484,1781099440000,-671.39242335,0.00012479,2]
[424735483,1781099440000,-671.39242335,0.00012479,2]
[424735491,1781099440000,-671.39242335,0.00012479,2]
[424735489,1781099440000,-671.39242335,0.00012479,2]
[424735488,1781099440000,-671.39242335,0.00012479,2]
[424735490,1781099440000,-671.39242335,0.00012479,2]
[424735492,1781099440000,-671.39242335,0.00012479,2]
[424735487,1781099440000,-671.39242335,0.00012479,2]
[424735494,1781099440000,-671.39242335,0.00012479,2]
[424735535,1781099441000,-713.17838536,0.00012479,2]
[424735533,1781099441000,-713.17838536,0.00012479,2]
[424735531,1781099441000,-713.17838536,0.00012479,2]
[424735534,1781099441000,-713.17838536,0.00012479,2]
[424735540,1781099441000,-713.17838536,0.00012479,2]
[424735537,1781099441000,-713.17838536,0.00012479,2]
[424735538,1781099441000,-713.17838536,0.00012479,2]
[424735541,1781099441000,-713.17838536,0.00012479,2]
[424735532,1781099441000,-713.17838536,0.00012479,2]
[424735536,1781099441000,-713.17838536,0.00012479,2]
[424735530,1781099441000,-713.17838536,0.00012479,2]
[424735520,1781099441000,-671.39242335,0.00012479,2]
[424735528,1781099441000,-393.27457522,0.00012479,2]
[424735523,1781099441000,-671.39242335,0.00012479,2]
[424735527,1781099441000,-617.31569884,0.00012479,2]
[424735526,1781099441000,-353.99080792,0.00012479,2]
[424735525,1781099441000,-671.39242335,0.00012479,2]
[424735524,1781099441000,-671.39242335,0.00012479,2]
[424735521,1781099441000,-671.39242335,0.00012479,2]
[424735519,1781099441000,-671.39242335,0.00012479,2]
[424735522,1781099441000,-671.39242335,0.00012479,2]
[424735518,1781099441000,-671.39242335,0.00012479,2]
[424735544,1781099441000,-713.17838536,0.00012479,2]
[424735539,1781099441000,-713.17838536,0.00012479,2]
[424735543,1781099441000,-713.17838536,0.00012479,2]
[424735529,1781099441000,-713.17838536,0.00012479,2]
[424735546,1781099441000,-713.17838536,0.00012479,2]
[424735542,1781099441000,-713.17838536,0.00012479,2]
[424735566,1781099441000,-700.21150561,0.00012479,2]
[424735569,1781099441000,-250.0,0.00012479,2]
[424735568,1781099441000,-2000.0,0.00012479,2]
[424735564,1781099441000,-700.21150561,0.00012479,2]